fUSD/lending_fUSD_20250110
["ID","MTS","AMOUNT","RATE_DAILY","PERIOD"]
[348401357,1736511045830,-727.34,9.997e-05,2]
[348401358,1736511045840,-580.92,9.997e-05,2]
[348401359,1736511045849,-500.0,9.998e-05,2]
[348401360,1736511045858,-205.59955707,9.998e-05,2]
[348401361,1736511045867,-542.88,9.999e-05,2]
[348401362,1736511045877,-500.0,9.999e-05,2]
[348401363,1736511045886,-544.20346807,9.999e-05,2]
[348401364,1736511045895,-500.0,9.999e-05,2]
[348401365,1736511045905,-1217.51,9.999e-05,2]
[348401366,1736511045914,-500.0,9.999e-05,2]
[348401367,1736511045924,-500.0,9.999e-05,2]
[348401368,1736511045933,-500.0,9.999e-05,2]
[348401369,1736511045942,-500.0,9.999e-05,2]
[348401370,1736511045951,-381.701368,9.999e-05,2]
[348401371,1736511045961,-381.701368,9.999e-05,2]
[348401372,1736511045970,-500.0,9.999e-05,2]
[348401373,1736511045980,-851.81,9.999e-05,2]
[348401374,1736511045989,-816.58,9.999e-05,2]
[348401375,1736511045998,-591.82,9.999e-05,2]
[348401376,1736511046008,-500.0,9.999e-05,2]
[348401377,1736511046017,-509.94,9.999e-05,2]
[348401378,1736511046026,-500.0,9.999e-05,2]
[348401379,1736511046035,-500.0,9.999e-05,2]
[348401380,1736511046045,-190.43478459,9.999e-05,2]
[348401381,1736511046054,-678.36,9.999e-05,2]
[348401382,1736511046063,-333.331678,9.999e-05,2]
[348401383,1736511046073,-333.331678,9.999e-05,2]
[348401385,1736511046082,-500.0,9.999e-05,2]
[348401386,1736511046091,-589.76,9.999e-05,2]
[348401387,1736511046100,-500.0,9.999e-05,2]
[348401388,1736511046110,-500.0,9.999e-05,2]
[348401389,1736511046119,-500.0,9.999e-05,2]
[348401390,1736511046128,-500.0,9.999e-05,2]
[348401393,1736511046137,-500.0,9.999e-05,2]
[348401395,1736511046146,-573.95,9.999e-05,2]
[348401397,1736511046155,-666.85,9.999e-05,2]
[348401398,1736511046164,-273.77252007,9.999e-05,2]
[348401399,1736511046173,-681.98,9.999e-05,2]
[348401400,1736511046183,-551.6,9.999e-05,2]
[348401401,1736511046193,-559.47,9.999e-05,2]
[348401402,1736511046203,-500.0,9.999e-05,2]
[348401403,1736511046212,-500.0,9.999e-05,2]
[348401404,1736511046222,-500.0,9.999e-05,2]
[348401405,1736511046231,-566.99,9.999e-05,2]
[348401406,1736511046241,-500.0,9.999e-05,2]
[348401408,1736511046250,-500.0,9.999e-05,2]
[348401410,1736511046259,-500.0,9.999e-05,2]
[348401411,1736511046268,-500.0,9.999e-05,2]
[348401413,1736511046277,-398.86921737,9.999e-05,2]
[348401414,1736511046287,-500.0,9.999e-05,2]
[348401415,1736511046296,-500.0,9.999e-05,2]
[348401416,1736511046305,-512.2,9.999e-05,2]
[348401417,1736511046314,-579.22,9.999e-05,2]
[348401418,1736511046324,-2502.08,9.999e-05,2]
[348401419,1736511046333,-500.0,9.999e-05,2]
[348401420,1736511046342,-500.0,9.999e-05,2]
[348401421,1736511046351,-500.0,9.999e-05,2]
[348401422,1736511046359,-854.62,9.999e-05,2]
[348401423,1736511046369,-500.0,9.999e-05,2]
[348401424,1736511046378,-605.32,9.999e-05,2]
[348401425,1736511046387,-500.0,9.999e-05,2]
[348401426,1736511046396,-500.0,9.999e-05,2]
[348401427,1736511046406,-500.0,9.999e-05,2]
[348401428,1736511046415,-639.08,9.999e-05,2]
[348401429,1736511046424,-259.03,9.999e-05,2]
[348401430,1736511046433,-500.0,9.999e-05,2]
[348401431,1736511046442,-500.0,9.999e-05,2]
[348401432,1736511046451,-500.0,9.999e-05,2]
[348401433,1736511046461,-500.0,9.999e-05,2]
[348401434,1736511046470,-503.93,9.999e-05,2]
[348401435,1736511046479,-500.0,9.999e-05,2]
[348401436,1736511046489,-659.25,9.999e-05,2]
[348401437,1736511046499,-642.14,9.999e-05,2]
[348401438,1736511046508,-500.0,9.999e-05,2]
[348401439,1736511046517,-1024.59,9.999e-05,2]
[348401440,1736511046527,-500.0,9.999e-05,2]
[348401441,1736511046536,-500.0,9.999e-05,2]
[348401442,1736511046545,-702.89,9.999e-05,2]
[348401443,1736511046555,-585.60557493,9.999e-05,2]
[348401444,1736511046564,-502.95145243,9.999e-05,2]
[348401445,1736511046573,-577.78,9.999e-05,2]
[348401446,1736511046583,-584.29,9.999e-05,2]
[348401447,1736511046592,-500.0,9.999e-05,2]
[348401448,1736511046601,-500.0,9.999e-05,2]
[348401449,1736511046611,-632.24,9.999e-05,2]
[348401450,1736511046620,-500.0,9.999e-05,2]
[348401451,1736511046633,-500.0,9.999e-05,2]
[348401452,1736511046642,-510.76628654,9.999e-05,2]
[348401453,1736511046651,-500.0,9.999e-05,2]
[348401454,1736511046660,-500.0,9.999e-05,2]
[348401455,1736511046669,-2395.44,9.999e-05,2]
[348401456,1736511046680,-608.29,9.999e-05,2]
[348401457,1736511046690,-563.85,9.999e-05,2]
[348401458,1736511046700,-573.52,9.999e-05,2]
[348401459,1736511046710,-1000.0,9.999e-05,2]
[348401460,1736511046720,-500.0,9.999e-05,2]
[348401461,1736511046730,-776.53,9.999e-05,2]
[348401463,1736511046739,-505.47049183,9.999e-05,2]
[348401464,1736511046748,-500.0,9.999e-05,2]
[348401465,1736511046757,-1841.47,9.999e-05,2]
[348401466,1736511046766,-534.13,9.999e-05,2]
[348401467,1736511046775,-548.48,9.999e-05,2]
[348401469,1736511046784,-634.73,9.999e-05,2]
[348401471,1736511046793,-500.0,9.999e-05,2]
[348401472,1736511046803,-7525.91,9.999e-05,2]
[348401473,1736511046812,-7525.91,9.999e-05,2]
[348401474,1736511046821,-7525.91,9.999e-05,2]
[348401475,1736511046831,-500.0,9.999e-05,2]
[348401476,1736511046840,-7525.91,9.999e-05,2]
[348401477,1736511046849,-561.57,9.999e-05,2]
[348401478,1736511046858,-505.05392241,9.999e-05,2]
[348401479,1736511046868,-7525.91,9.999e-05,2]
[348401480,1736511046878,-505.34606641,9.999e-05,2]
[348401481,1736511046887,-7525.91,9.999e-05,2]
[348401482,1736511046896,-7525.91,9.999e-05,2]
[348401483,1736511046905,-486.56467089,9.999e-05,2]
[348401484,1736511046914,-7525.91,9.999e-05,2]
[348401485,1736511046923,-525.12,9.999e-05,2]
[348401486,1736511046933,-7525.91,9.999e-05,2]
[348401487,1736511046942,-7525.91,9.999e-05,2]
[348401488,1736511046951,-7525.91,9.999e-05,2]
[348401489,1736511046961,-7525.91,9.999e-05,2]
[348401490,1736511046970,-7525.91,9.999e-05,2]
[348401491,1736511046979,-7525.91,9.999e-05,2]
[348401492,1736511046989,-7525.91,9.999e-05,2]
[348401493,1736511046998,-7525.91,9.999e-05,2]
[348401494,1736511047008,-7525.91,9.999e-05,2]
[348401495,1736511047017,-7525.91,9.999e-05,2]
[348401496,1736511047027,-500.0,9.999e-05,2]
[348401497,1736511047036,-7525.91,9.999e-05,2]
[348401498,1736511047045,-7525.91,9.999e-05,2]
[348401499,1736511047055,-500.0,9.999e-05,2]
[348401500,1736511047064,-7525.91,9.999e-05,2]
[348401501,1736511047074,-1055.29,9.999e-05,2]
[348401502,1736511047083,-7525.91,9.999e-05,2]
[348401503,1736511047092,-7526.13429767,9.999e-05,2]
[348401504,1736511047101,-758.52,9.999e-05,2]
[348401505,1736511047111,-1919.57,9.999e-05,2]
[348401506,1736511047120,-725.3,9.999e-05,2]
[348401507,1736511047130,-2865.74,9.999e-05,2]
[348401508,1736511047139,-500.0,9.999e-05,2]
[348401509,1736511047148,-1399.86,9.999e-05,2]
[348401510,1736511047157,-1389.69,9.999e-05,2]
[348401511,1736511047166,-561.6,9.999e-05,2]
[348401512,1736511047175,-745.91,9.999e-05,2]
[348401513,1736511047184,-500.0,9.999e-05,2]
[348401514,1736511047194,-733.4,9.999e-05,2]
[348401515,1736511047203,-517.67,9.999e-05,2]
[348401516,1736511047212,-515.26,9.999e-05,2]
[348401517,1736511047222,-699.05,9.999e-05,2]
[348401518,1736511047231,-500.0,9.999e-05,2]
[348401519,1736511047240,-576.72,9.999e-05,2]
[348401520,1736511047250,-500.0,9.999e-05,2]
[348401521,1736511047259,-500.0,9.999e-05,2]
[348401522,1736511047268,-691.16,9.999e-05,2]
[348401523,1736511047278,-756.92,9.999e-05,2]
[348401524,1736511047287,-500.0,9.999e-05,2]
[348401525,1736511047296,-896.39,9.999e-05,2]
[348401526,1736511047305,-500.0,9.999e-05,2]
[348401527,1736511047314,-2327.28,9.999e-05,2]
[348401528,1736511047324,-500.0,9.999e-05,2]
[348401529,1736511047333,-826.41,9.999e-05,2]
[348401530,1736511047342,-500.0,9.999e-05,2]
[348401531,1736511047352,-539.93,9.999e-05,2]
[348401532,1736511047361,-500.0,9.999e-05,2]
[348401533,1736511047370,-2241.82,9.999e-05,2]
[348401534,1736511047379,-652.57,9.999e-05,2]
[348401535,1736511047388,-725.37,9.999e-05,2]
[348401536,1736511047397,-526.13,9.999e-05,2]
[348401537,1736511047406,-614.17,9.999e-05,2]
[348401538,1736511047415,-500.0,9.999e-05,2]
[348401539,1736511047424,-480.99178437,9.999e-05,2]
[348401540,1736511047434,-536.19,9.999e-05,2]
[348401541,1736511047443,-500.0,9.999e-05,2]
[348401542,1736511047452,-500.0,9.999e-05,2]
[348401543,1736511047462,-575.45,9.999e-05,2]
[348401544,1736511047471,-500.0,9.999e-05,2]
[348401545,1736511047481,-558.77,9.999e-05,2]
[348401546,1736511047490,-500.0,9.999e-05,2]
[348401547,1736511047500,-934.33,9.999e-05,2]
[348401548,1736511047509,-500.0,9.999e-05,2]
[348401549,1736511047518,-534.71,9.999e-05,2]
[348401550,1736511047527,-500.0,9.999e-05,2]
[348401551,1736511047535,-500.0,9.999e-05,2]
[348401552,1736511047544,-500.0,9.999e-05,2]
[348401553,1736511047554,-997.57,9.999e-05,2]
[348401554,1736511047563,-500.0,9.999e-05,2]
[348401555,1736511047572,-500.0,9.999e-05,2]
[348401556,1736511047582,-918.96,9.999e-05,2]
[348401557,1736511047591,-500.0,9.999e-05,2]
[348401558,1736511047600,-227.12376438,9.999e-05,2]
[348401559,1736511047609,-500.0,9.999e-05,2]
[348401560,1736511047618,-500.0,9.999e-05,2]
[348401561,1736511047628,-962.0,0.0001,2]
[348401562,1736511047639,-275424.90148338,0.0001,2]
[348401563,1736511048266,-1031.21,9.999e-05,2]
[348401564,1736511048276,-842.63791645,0.0001,2]
[348401565,1736511048287,-2383.28604511,0.0001,2]
[348401566,1736511048298,-19051.79693148,0.0001,2]
[348401567,1736511048316,-6657.1336,0.0001,2]
[348401568,1736511048327,-2070.14221823,0.0001,2]
[348401569,1736511048344,-9484.9,0.0001,2]
[348401570,1736511048355,-423.9,0.0001,2]
[348401571,1736511048366,-1684.3624554,0.0001,2]
[348401572,1736511048378,-563.27119587,0.0001,2]
[348401573,1736511048389,-51862.38436,0.0001,2]
[348401574,1736511071529,500.0,9.999e-05,7]
[348401584,1736511582056,539.47765969,8.219e-05,2]
[348401585,1736511582083,262.77234031,8.219e-05,2]
[348401587,1736511936354,275.16771606,8e-05,2]
[348401596,1736512122493,4380.86031583,0.0001,120]
[348401616,1736512231581,-186.57,8.936e-05,2]
[348401617,1736512231591,-20744.78,8.97e-05,2]
[348401618,1736512231600,-225.34,8.978e-05,2]
[348401619,1736512231609,-1000.0,9.069e-05,2]
[348401620,1736512231618,-5609.13,9.132e-05,2]
[348401621,1736512231627,-165.36,9.178e-05,2]
[348401622,1736512231637,-250.0,9.189e-05,2]
[348401623,1736512231648,-155.418,9.5e-05,2]
[348401624,1736512231659,-150.0,9.601e-05,2]
[348401625,1736512231668,-32299.0,9.602e-05,2]
[348401626,1736512231677,-291.0,9.616e-05,2]
[348401627,1736512231687,-1000.0,9.75e-05,2]
[348401628,1736512231696,-373.4487,9.8e-05,2]
[348401629,1736512231705,-13197.2343,9.8e-05,2]
[348401630,1736512231715,-262.7864,9.8e-05,2]
[348401631,1736512231724,-1649.944,9.8e-05,2]
[348401632,1736512231737,-3020.848,9.8e-05,2]
[348401633,1736512231748,-162.141,9.8e-05,2]
[348401634,1736512231757,-2528.9888,9.8e-05,2]
[348401635,1736512231766,-642.02,9.849e-05,2]
[348401636,1736512231775,-523.56,9.849e-05,2]
[348401637,1736512231786,-1162.9,9.849e-05,2]
[348401638,1736512231795,-595.3,9.849e-05,2]
[348401639,1736512231804,-1195.26,9.849e-05,2]
[348401640,1736512231813,-890.03,9.849e-05,2]
[348401641,1736512231822,-1281.01,9.849e-05,2]
[348401642,1736512231831,-774.18,9.849e-05,2]
[348401643,1736512231841,-500.0,9.849e-05,2]
[348401644,1736512231850,-526.08,9.849e-05,2]
[348401645,1736512231859,-1332.51,9.849e-05,2]
[348401646,1736512231869,-650.98,9.849e-05,2]
[348401647,1736512231878,-500.0,9.849e-05,2]
[348401648,1736512231887,-500.0,9.849e-05,2]
[348401649,1736512231897,-500.00128527,9.849e-05,2]
[348401650,1736512231906,-596.09,9.849e-05,2]
[348401651,1736512231916,-500.0,9.849e-05,2]
[348401652,1736512231926,-500.0,9.849e-05,2]
[348401653,1736512231935,-500.0,9.849e-05,2]
[348401654,1736512231945,-500.0,9.849e-05,2]
[348401655,1736512231954,-594.39,9.849e-05,2]
[348401656,1736512231964,-500.0,9.849e-05,2]
[348401657,1736512231973,-500.0,9.849e-05,2]
[348401658,1736512231986,-500.0,9.849e-05,2]
[348401659,1736512231996,-544.20346807,9.849e-05,2]
[348401660,1736512232005,-734.21,9.849e-05,2]
[348401661,1736512232015,-500.0,9.849e-05,2]
[348401662,1736512232024,-500.0,9.849e-05,2]
[348401663,1736512232034,-500.0,9.849e-05,2]
[348401664,1736512232043,-500.0,9.849e-05,2]
[348401665,1736512232053,-120021.53253526,9.85e-05,2]
[348401666,1736512232065,-857.76981249,9.85e-05,2]
[348401667,1736512232077,-1000.0,9.85e-05,2]
[348401668,1736512232092,-969.15793523,9.85e-05,2]
[348401669,1736512232104,-353.730012,9.85e-05,2]
[348401670,1736512232115,-1162.79009612,9.85e-05,2]
[348401671,1736512232127,-255.3829171,9.85e-05,2]
[348401672,1736512232140,-309.76,9.85e-05,2]
[348401673,1736512232152,-263.47079128,9.85e-05,2]
[348401675,1736512232163,-565.613972,9.85e-05,2]
[348401677,1736512232174,-468.45208656,9.85e-05,2]
[348401679,1736512232185,-353.01795256,9.85e-05,2]
[348401681,1736512232196,-1676.0,9.85e-05,2]
[348401684,1736512232207,-595.743666,9.85e-05,2]
[348401686,1736512232223,-2620.3073268,9.85e-05,2]
[348401689,1736512232245,-25203.36164873,9.85e-05,2]
[348401691,1736512232256,-558.45,9.85e-05,2]
[348401693,1736512232268,-492.21,9.85e-05,2]
[348401697,1736512232291,-2740.40489706,9.85e-05,2]
[348401699,1736512232300,-1040.2151,9.892e-05,2]
[348401701,1736512232309,-1000.0,9.893e-05,2]
[348401703,1736512232319,-5000.0,9.893e-05,2]
[348401705,1736512232328,-1500.0,9.899e-05,2]
[348401707,1736512232338,-162.4569,9.899e-05,2]
[348401708,1736512232347,-3948.07909694,9.899e-05,2]
[348401714,1736512237465,-500.0,9.849e-05,2]
[348401715,1736512237475,-612.65,9.849e-05,2]
[348401716,1736512237484,-500.0,9.849e-05,2]
[348401717,1736512237493,-258.89510461,9.899e-05,2]
[348401718,1736512237680,-492.065,9.899e-05,2]
[348401869,1736512239579,-1000.0,9.899e-05,2]
[348401877,1736512239645,-47244.32999845,9.899e-05,2]
[348401879,1736512239659,-523.36,9.899e-05,2]
[348401881,1736512239668,-500.0,9.899e-05,2]
[348401883,1736512239677,-500.0,9.899e-05,2]
[348401885,1736512239687,-500.0,9.899e-05,2]
[348401887,1736512239697,-500.0,9.899e-05,2]
[348401889,1736512239706,-500.0,9.899e-05,2]
[348401891,1736512239715,-500.0,9.899e-05,2]
[348401893,1736512239724,-500.0,9.899e-05,2]
[348401895,1736512239735,-37112.4434,9.9e-05,2]
[348401897,1736512239744,-1876.38618185,9.934e-05,2]
[348401899,1736512239753,-1876.38618185,9.969e-05,2]
[348401901,1736512239762,-596.64,9.977e-05,2]
[348401903,1736512239771,-596.64,9.978e-05,2]
[348401905,1736512239781,-596.64,9.979e-05,2]
[348401907,1736512239790,-596.64,9.982e-05,2]
[348401909,1736512239800,-596.64,9.983e-05,2]
[348401911,1736512239809,-596.64,9.988e-05,2]
[348401913,1736512239818,-2743.4074024,9.992e-05,2]
[348401915,1736512239827,-1369.0452035,9.992e-05,2]
[348401917,1736512239836,-2640.5731354,9.993e-05,2]
[348401919,1736512239845,-1317.7277216,9.993e-05,2]
[348401921,1736512239853,-500.0,9.993e-05,2]
[348401923,1736512239862,-522.51,9.993e-05,2]
[348401925,1736512239871,-500.0,9.993e-05,2]
[348401927,1736512239880,-500.0,9.993e-05,2]
[348401929,1736512239889,-500.0,9.993e-05,2]
[348401931,1736512239898,-500.0,9.993e-05,2]
[348401933,1736512239907,-500.0,9.993e-05,2]
[348401935,1736512239916,-597.73,9.993e-05,2]
[348401937,1736512239925,-500.0,9.993e-05,2]
[348401939,1736512239934,-500.0,9.993e-05,2]
[348401941,1736512239942,-500.0,9.993e-05,2]
[348401943,1736512239952,-500.0,9.993e-05,2]
[348401944,1736512239960,-500.0,9.993e-05,2]
[348401946,1736512239970,-500.0,9.993e-05,2]
[348401948,1736512239979,-500.0,9.993e-05,2]
[348401950,1736512239989,-500.0,9.993e-05,2]
[348401952,1736512239998,-500.0,9.993e-05,2]
[348401954,1736512240007,-500.0,9.993e-05,2]
[348401956,1736512240016,-500.0,9.993e-05,2]
[348401958,1736512240026,-527.54,9.993e-05,2]
[348401960,1736512240035,-500.0,9.993e-05,2]
[348401962,1736512240044,-500.0,9.993e-05,2]
[348401964,1736512240053,-500.0,9.993e-05,2]
[348401966,1736512240062,-500.0,9.993e-05,2]
[348401968,1736512240071,-601.28,9.993e-05,2]
[348401970,1736512240080,-500.0,9.993e-05,2]
[348401972,1736512240089,-582.35,9.993e-05,2]
[348401974,1736512240098,-545.86,9.993e-05,2]
[348401976,1736512240108,-500.0,9.993e-05,2]
[348401978,1736512240117,-500.0,9.993e-05,2]
[348401980,1736512240126,-500.0,9.993e-05,2]
[348401982,1736512240135,-500.0,9.993e-05,2]
[348401984,1736512240147,-500.0,9.993e-05,2]
[348401986,1736512240157,-500.0,9.993e-05,2]
[348401988,1736512240166,-500.0,9.993e-05,2]
[348401990,1736512240175,-550.54,9.993e-05,2]
[348401992,1736512240183,-500.0,9.993e-05,2]
[348401993,1736512240192,-500.0,9.993e-05,2]
[348401994,1736512240201,-500.0,9.993e-05,2]
[348401995,1736512240210,-520.11,9.993e-05,2]
[348401996,1736512240219,-644.03,9.993e-05,2]
[348401997,1736512240228,-1667.52,9.993e-05,2]
[348401998,1736512240237,-563.01,9.993e-05,2]
[348401999,1736512240246,-521.9,9.993e-05,2]
[348402000,1736512240255,-500.0,9.993e-05,2]
[348402002,1736512240264,-1345.74,9.993e-05,2]
[348402004,1736512240274,-500.0,9.993e-05,2]
[348402006,1736512240283,-2231.02,9.993e-05,2]
[348402008,1736512240292,-554.98,9.993e-05,2]
[348402010,1736512240301,-500.0,9.993e-05,2]
[348402012,1736512240310,-184.01,9.993e-05,2]
[348402014,1736512240319,-628.7,9.993e-05,2]
[348402016,1736512240328,-500.0,9.993e-05,2]
[348402018,1736512240337,-500.0,9.993e-05,2]
[348402020,1736512240346,-500.0,9.993e-05,2]
[348402046,1736512240577,-500.0,9.993e-05,2]
[348402048,1736512240587,-902.84,9.993e-05,2]
[348402050,1736512240596,-643.74,9.993e-05,2]
[348402052,1736512240605,-500.0,9.993e-05,2]
[348402054,1736512240614,-948.17,9.993e-05,2]
[348402056,1736512240623,-984.54,9.993e-05,2]
[348402058,1736512240632,-627.7,9.993e-05,2]
[348402060,1736512240641,-1423.62,9.993e-05,2]
[348402062,1736512240650,-715.02,9.993e-05,2]
[348402064,1736512240659,-2271.31,9.993e-05,2]
[348402066,1736512240668,-500.0,9.993e-05,2]
[348402068,1736512240677,-894.37,9.993e-05,2]
[348402070,1736512240687,-500.0,9.993e-05,2]
[348402072,1736512240696,-797.38,9.993e-05,2]
[348402074,1736512240705,-7525.91,9.993e-05,2]
[348402076,1736512240714,-660.59,9.993e-05,2]
[348402078,1736512240723,-607.23,9.993e-05,2]
[348402080,1736512240731,-500.0,9.993e-05,2]
[348402082,1736512240742,-500.0,9.993e-05,2]
[348402083,1736512240750,-1161.81,9.993e-05,2]
[348402085,1736512240760,-977.63,9.993e-05,2]
[348402087,1736512240769,-630.79,9.993e-05,2]
[348402089,1736512240778,-1094.72,9.993e-05,2]
[348402091,1736512240787,-500.0,9.993e-05,2]
[348402093,1736512240795,-597.57,9.994e-05,2]
[348402095,1736512240804,-680.23,9.994e-05,2]
[348402097,1736512240813,-1117.58,9.994e-05,2]
[348402099,1736512240822,-1010.85,9.994e-05,2]
[348402101,1736512240832,-1900.85,9.994e-05,2]
[348402103,1736512240841,-4801.44,9.994e-05,2]
[348402105,1736512240850,-727.34,9.994e-05,2]
[348402107,1736512240859,-542.88,9.994e-05,2]
[348402109,1736512240868,-559.12,9.994e-05,2]
[348402110,1736512240877,-500.0,9.994e-05,2]
[348402112,1736512240887,-580.92,9.994e-05,2]
[348402114,1736512240895,-604.16,9.995e-05,2]
[348402116,1736512240905,-500.0,9.995e-05,2]
[348402118,1736512240914,-670.93,9.995e-05,2]
[348402120,1736512240923,-160.30359622,9.995e-05,2]
[348402123,1736512240931,-500.0,9.995e-05,2]
[348402125,1736512240941,-586.02,9.995e-05,2]
[348402127,1736512240950,-500.0,9.995e-05,2]
[348402128,1736512240959,-530.77,9.995e-05,2]
[348402130,1736512240968,-500.0,9.995e-05,2]
[348402132,1736512240977,-500.0,9.995e-05,2]
[348402134,1736512240987,-500.0,9.995e-05,2]
[348402136,1736512240996,-500.0,9.995e-05,2]
[348402138,1736512241005,-549.45,9.995e-05,2]
[348402140,1736512241015,-556.99,9.995e-05,2]
[348402142,1736512241024,-570.87,9.995e-05,2]
[348402144,1736512241033,-882.74,9.995e-05,2]
[348402146,1736512241042,-500.0,9.995e-05,2]
[348402148,1736512241051,-500.84308073,9.995e-05,2]
[348402150,1736512241061,-501.98221632,9.995e-05,2]
[348402152,1736512241070,-500.0,9.995e-05,2]
[348402154,1736512241079,-575.92,9.995e-05,2]
[348402156,1736512241089,-500.0,9.995e-05,2]
[348402158,1736512241099,-501.09738004,9.995e-05,2]
[348402160,1736512241109,-500.0,9.995e-05,2]
[348402162,1736512241118,-500.0,9.995e-05,2]
[348402165,1736512241128,-500.0,9.995e-05,2]
[348402167,1736512241137,-500.0,9.995e-05,2]
[348402169,1736512241149,-499.99779869,9.995e-05,2]
[348402171,1736512241158,-500.0,9.995e-05,2]
[348402173,1736512241167,-500.0,9.995e-05,2]
[348402175,1736512241177,-1650.08,9.995e-05,2]
[348402177,1736512241186,-500.61787739,9.995e-05,2]
[348402179,1736512241196,-500.0,9.995e-05,2]
[348402181,1736512241205,-500.81693741,9.995e-05,2]
[348402183,1736512241215,-626.15,9.995e-05,2]
[348402185,1736512241224,-500.83393922,9.995e-05,2]
[348402187,1736512241234,-500.0,9.995e-05,2]
[348402189,1736512241244,-500.0,9.995e-05,2]
[348402191,1736512241253,-500.0,9.995e-05,2]
[348402193,1736512241262,-350.17475122,9.995e-05,2]
[348402195,1736512241272,-659.91,9.995e-05,2]
[348402197,1736512241281,-500.0,9.995e-05,2]
[348402198,1736512241291,-459.5295527,9.995e-05,2]
[348402200,1736512241300,-500.0,9.995e-05,2]
[348402202,1736512241310,-501.03109747,9.995e-05,2]
[348402204,1736512241319,-1212.47,9.995e-05,2]
[348402206,1736512241328,-500.49234578,9.995e-05,2]
[348402208,1736512241338,-542.52,9.995e-05,2]
[348402209,1736512241347,-500.0,9.995e-05,2]
[348402210,1736512241356,-500.0,9.995e-05,2]
[348402211,1736512241365,-166.0287352,9.995e-05,2]
[348402212,1736512241375,-500.0,9.995e-05,2]
[348402214,1736512241384,-500.0,9.995e-05,2]
[348402216,1736512241392,-501.08004424,9.995e-05,2]
[348402217,1736512241402,-603.81872215,9.995e-05,2]
[348402220,1736512241411,-501.1752285,9.995e-05,2]
[348402221,1736512241421,-662.97,9.995e-05,2]
[348402223,1736512241431,-500.0,9.995e-05,2]
[348402226,1736512241440,-500.0,9.995e-05,2]
[348402228,1736512241449,-500.0,9.995e-05,2]
[348402230,1736512241459,-816.34,9.995e-05,2]
[348402232,1736512241468,-500.0,9.995e-05,2]
[348402234,1736512241477,-315.38546,9.995e-05,2]
[348402235,1736512241486,-500.0,9.995e-05,2]
[348402237,1736512241495,-610.46495691,9.995e-05,2]
[348402240,1736512241505,-500.47567859,9.995e-05,2]
[348402242,1736512241514,-500.0,9.995e-05,2]
[348402243,1736512241523,-501.51118293,9.995e-05,2]
[348402246,1736512241533,-157.994959,9.995e-05,2]
[348402248,1736512241542,-500.0,9.995e-05,2]
[348402249,1736512241551,-500.0,9.995e-05,2]
[348402252,1736512241560,-500.0,9.995e-05,2]
[348402254,1736512241569,-500.0,9.995e-05,2]
[348402255,1736512241578,-500.20044793,9.995e-05,2]
[348402258,1736512241588,-500.0,9.995e-05,2]
[348402260,1736512241597,-601.64,9.995e-05,2]
[348402262,1736512241607,-500.39228216,9.995e-05,2]
[348402264,1736512241615,-500.71960789,9.995e-05,2]
[348402266,1736512241624,-500.0,9.995e-05,2]
[348402268,1736512241633,-680.08,9.995e-05,2]
[348402270,1736512241643,-386.181655,9.995e-05,2]
[348402272,1736512241654,-504.38,9.995e-05,2]
[348402274,1736512241663,-500.73460745,9.995e-05,2]
[348402276,1736512241672,-2564.82,9.995e-05,2]
[348402277,1736512241681,-500.0,9.995e-05,2]
[348402279,1736512241691,-501.40447644,9.995e-05,2]
[348402282,1736512241700,-629.13,9.995e-05,2]
[348402284,1736512241709,-723.73,9.995e-05,2]
[348402285,1736512241719,-500.0,9.995e-05,2]
[348402287,1736512241730,-500.0,9.995e-05,2]
[348402289,1736512241739,-594.35,9.995e-05,2]
[348402291,1736512241748,-500.0,9.995e-05,2]
[348402293,1736512241756,-500.30387609,9.995e-05,2]
[348402295,1736512241765,-500.0,9.995e-05,2]
[348402297,1736512241774,-500.0,9.995e-05,2]
[348402299,1736512241783,-584.29,9.995e-05,2]
[348402300,1736512241792,-500.0,9.995e-05,2]